bitfinex/quotes_SOLUSD_20220128
["timestamp","ask_amount","ask_price","bid_price","bid_amount"]
[1643413687292,26.369,91.34,91.257,49.6039]
[1643413687489,0.25,91.339,91.257,49.6039]
[1643413687689,3.20669142,91.339,91.257,49.6039]
[1643413687893,2.95669142,91.338,91.257,49.6039]
[1643413688293,0.25,91.337,91.257,49.6039]
[1643413688699,2.95669142,91.336,91.257,49.1039]
[1643413688892,16.442,91.32,91.257,49.1039]
[1643413689293,54.81,91.33,91.257,49.1039]
[1643413689294,0.25,91.319,91.258,0.25]
[1643413689492,13.76,91.319,91.258,0.25]
[1643413690496,13.76,91.319,91.236,22.9836647]
[1643413690699,16.442,91.31,91.236,22.9836647]
[1643413690896,0.25,91.309,91.236,22.9836647]
[1643413691397,0.25,91.309,91.236,22.7876]
[1643413691896,16.444,91.3,91.236,22.7876]
[1643413692095,30.174,91.3,91.222,23.8167]
[1643413692296,0.25,91.299,91.204,23.4609]
[1643413692498,3.20669142,91.299,91.204,23.4609]
[1643413692697,2.95669142,91.298,91.204,23.4609]
[1643413692897,0.25,91.297,91.204,23.4609]
[1643413693103,0.25,91.297,91.205,38.34250403]
[1643413693337,16.449,91.28,91.205,38.34250403]
[1643413693834,0.25,91.279,91.205,38.34250403]
[1643413694031,6.0,91.27,91.205,38.34250403]
[1643413694430,0.25,91.269,91.205,38.34250403]
[1643413694635,6.0,91.27,91.205,38.34250403]
[1643413695233,6.0,91.27,91.206,0.25]
[1643413695835,6.0,91.27,91.205,0.25]
[1643413698037,0.25,91.269,91.205,0.25]
[1643413698240,0.25,91.269,91.204,23.4609]
[1643413698441,18.18,91.27,91.204,23.4609]
[1643413698937,0.25,91.269,91.204,23.4609]
[1643413699841,0.25,91.269,91.205,0.25]
[1643413700037,16.451,91.26,91.205,0.25]
[1643413700938,0.25,91.259,91.205,0.25]
[1643413703344,16.451,91.26,91.205,0.25]
[1643413704573,24.2757,91.288,91.205,0.25]
[1643413704745,16.448,91.28,91.205,0.25]
[1643413705152,0.25,91.279,91.205,0.25]
[1643413705949,4.4770249,91.436,91.205,110.15]
[1643413705950,54.819,91.31,91.205,110.15]
[1643413706148,47.725,91.359,91.214,6.0]
[1643413706352,47.725,91.359,91.215,55.64862381]
[1643413706353,11.4305306,91.332,91.215,55.64862381]
[1643413706548,2.95669142,91.358,91.225,6.0]
[1643413706750,2.95669142,91.358,91.227,37.71289856]
[1643413706949,16.442,91.31,91.227,37.71289856]
[1643413707149,11.42786016,91.354,91.237,6.0]
[1643413707353,11.42786016,91.354,91.238,24.877]
[1643413707651,3.03761192,91.428,91.272,0.30591913]
[1643413707851,11.42408156,91.424,91.273,65.78]
[1643413708052,16.428,91.4,91.297,0.3031605]
[1643413708250,16.428,91.4,91.298,65.78]
[1643413708451,17.61661975,91.457,91.3,65.78]
[1643413708651,17.61661975,91.457,91.322,0.30871285]
[1643413708854,11.41685976,91.454,91.322,11.25871285]
[1643413709051,6.0,91.447,91.332,6.0]
[1643413709252,6.0,91.447,91.333,0.25]
[1643413709450,16.423,91.42,91.334,6.0]
[1643413709652,16.423,91.42,91.334,8.9192475]
[1643413709851,16.423,91.42,91.343,6.0]
[1643413710055,16.423,91.42,91.335,3.1692475]
[1643413710254,54.734,91.45,91.344,2.9192475]
[1643413710454,45.6113,91.465,91.346,109.9]
[1643413710653,45.6113,91.465,91.354,6.0]
[1643413710853,6.0,91.455,91.356,6.0]
[1643413711359,6.0,91.455,91.357,0.25]
[1643413711755,0.25,91.454,91.357,0.25]
[1643413711955,16.419,91.44,91.357,0.25]
[1643413712387,0.25,91.439,91.357,0.25]
[1643413714385,0.25,91.439,91.36,6.0]
[1643413714586,0.25,91.439,91.361,43.33965432]
[1643413714784,0.25,91.439,91.361,43.58965432]
[1643413714984,0.25,91.439,91.371,6.0]
[1643413715386,0.25,91.439,91.372,0.25]
[1643413717393,0.25,91.439,91.361,0.25]
[1643413717800,16.419,91.44,91.361,0.25]
[1643413717994,16.419,91.44,91.362,2.9192475]
[1643413718396,16.419,91.44,91.372,6.0]
[1643413718796,16.419,91.44,91.373,38.27047823]
[1643413719000,6.0,91.455,91.373,38.27047823]
[1643413719204,0.25,91.439,91.383,6.0]
[1643413719395,6.0,91.455,91.384,0.25]
[1643413719608,54.71,91.49,91.384,0.25]
[1643413719996,2.95669142,91.489,91.384,0.25]
[1643413720298,16.414,91.47,91.384,6.25]
[1643413720496,16.414,91.47,91.384,0.25]
[1643413720897,16.414,91.47,91.384,6.0]
[1643413721095,0.25,91.469,91.384,6.0]
[1643413721295,16.419,91.45,91.385,0.25]
[1643413721699,0.25,91.449,91.385,0.25]
[1643413722295,16.419,91.44,91.385,0.25]
[1643413722495,16.419,91.44,91.375,0.25]
[1643413722699,0.25,91.439,91.375,0.25]
[1643413723098,0.25,91.439,91.375,38.01351221]
[1643413723597,0.25,91.439,91.374,46.2107]
[1643413723797,0.25,91.459,91.374,46.2107]
[1643413724601,0.25,91.459,91.375,46.42195905]
[1643413725199,16.418,91.45,91.374,46.2107]
[1643413725397,0.25,91.449,91.374,46.2107]
[1643413725597,3.20669142,91.449,91.374,46.2107]
[1643413725796,2.95669142,91.448,91.374,46.2107]
[1643413726197,0.25,91.449,91.374,88.08918728]
[1643413726598,0.25,91.457,91.375,0.25]
[1643413726898,0.25,91.463,91.375,0.25]
[1643413727299,0.25,91.469,91.375,0.25]
[1643413728110,22.416,91.46,91.375,0.25]
[1643413728300,0.25,91.459,91.375,0.25]
[1643413729503,0.25,91.459,91.384,6.0]
[1643413729807,0.25,91.459,91.385,0.25]
[1643413730004,0.25,91.459,91.374,46.2107]
[1643413730208,16.418,91.45,91.318,109.9]
[1643413730409,16.418,91.45,91.341,45.8943]
[1643413730606,3.20669142,91.449,91.341,45.8943]
[1643413730804,31.791562,91.449,91.297,541.16918007]
[1643413731010,31.791562,91.449,91.304,38.55519443]
[1643413731206,2.95669142,91.448,91.304,38.55519443]
[1643413731405,16.428,91.42,91.304,38.55519443]
[1643413731609,24.888,91.42,91.304,38.55519443]
[1643413731908,6.0,91.41,91.304,38.55519443]
[1643413732311,6.0,91.41,91.303,46.2761]
[1643413732312,3.20669142,91.409,91.276,79.7684]
[1643413732509,24.3627,91.408,91.277,47.9698]
[1643413732707,27.31939142,91.408,91.277,47.9698]
[1643413732910,3.20669142,91.407,91.277,47.9698]
[1643413733310,16.432,91.38,91.278,38.64573087]
[1643413733508,26.252,91.38,91.278,38.64573087]
[1643413733713,3.20669142,91.379,91.279,0.25]
[1643413734107,2.95669142,91.378,91.279,0.25]
[1643413734307,0.25,91.377,91.278,38.64573087]
[1643413734911,2.95669142,91.376,91.278,38.64573087]
[1643413735109,16.435,91.36,91.278,38.64573087]
[1643413735308,0.25,91.359,91.278,38.64573087]
[1643413735709,0.25,91.359,91.279,0.25]
[1643413736611,0.25,91.379,91.279,0.25]
[1643413737813,54.784,91.38,91.279,0.25]
[1643413738014,16.432,91.37,91.279,0.25]
[1643413738613,6.0,91.36,91.279,0.25]
[1643413739015,6.0,91.35,91.279,0.25]
[1643413739413,16.435,91.35,91.279,0.25]
[1643413739614,6.0,91.34,91.279,0.25]
[1643413739814,0.25,91.339,91.279,0.25]
[1643413740029,0.25,91.339,91.278,0.25]
[1643413740221,0.25,91.339,91.22,28.57066693]
[1643413740222,13.98,91.339,91.235,2.9818986]
[1643413740413,16.439,91.33,91.221,48.77688677]
[1643413740613,6.0,91.329,91.221,45.5977]
[1643413740816,9.20669142,91.329,91.222,37.0613267]
[1643413741820,9.20669142,91.329,91.223,0.25]
[1643413742018,16.443,91.31,91.223,0.25]
[1643413742417,0.25,91.309,91.223,0.25]
[1643413743220,16.443,91.31,91.223,0.25]
[1643413745422,0.25,91.309,91.223,0.25]
[1643413746623,6.0,91.3,91.223,0.25]
[1643413748827,0.25,91.299,91.223,0.25]
[1643413751431,22.444,91.3,91.223,0.25]
[1643413751831,16.441,91.32,91.223,110.15]
[1643413752031,16.441,91.32,91.233,6.0]
[1643413752431,16.441,91.32,91.234,0.25]
[1643413752631,16.441,91.32,91.234,6.25]
[1643413754134,16.441,91.32,91.241,34.95008604]
[1643413754333,16.441,91.32,91.242,0.25]
[1643413754533,16.441,91.32,91.252,109.9]
[1643413754933,16.437,91.34,91.253,0.25]
[1643413755135,6.0,91.33,91.253,0.25]
[1643413755335,0.25,91.329,91.262,6.0]
[1643413755538,0.25,91.329,91.263,41.39485463]
[1643413755738,16.437,91.34,91.263,41.64485463]
[1643413756337,16.434,91.36,91.264,109.9]
[1643413756537,16.434,91.36,91.274,6.0]
[1643413756936,16.434,91.36,91.275,0.25]
[1643413757337,16.43,91.38,91.275,0.25]
[1643413757537,16.43,91.38,91.28,6.0]
[1643413757739,0.25,91.375,91.281,41.4146977]
[1643413757937,0.25,91.375,91.285,6.0]
[1643413758140,0.25,91.375,91.291,6.0]
[1643413758339,0.25,91.375,91.292,0.25]
[1643413759138,16.431,91.37,91.292,0.25]
[1643413759337,0.25,91.369,91.292,0.25]
[1643413759738,0.25,91.369,91.285,6.0]
[1643413759937,0.25,91.369,91.286,0.25]
[1643413760340,0.25,91.369,91.286,40.34074538]
[1643413760540,0.25,91.369,91.296,6.0]
[1643413760868,0.25,91.369,91.297,0.25]
[1643413761041,0.25,91.369,91.297,6.25]
[1643413763248,16.431,91.37,91.297,6.25]
[1643413764950,16.428,91.39,91.298,109.9]
[1643413765149,6.0,91.38,91.301,109.9]
[1643413765348,0.25,91.379,91.302,0.25]
[1643413765648,0.25,91.379,91.311,5.5]
[1643413765948,0.25,91.379,91.312,0.25]
[1643413766549,0.25,91.389,91.312,0.25]
[1643413766751,16.428,91.39,91.312,0.25]
[1643413766949,16.428,91.39,91.301,0.25]
[1643413767353,16.428,91.39,91.31,6.0]
[1643413767752,16.428,91.39,91.311,0.25]
[1643413769677,0.25,91.389,91.311,0.25]
[1643413770678,0.25,91.389,91.301,0.25]
[1643413771479,16.428,91.39,91.301,110.15]
[1643413771680,16.428,91.39,91.31,6.0]
[1643413771879,0.25,91.389,91.312,109.9]
[1643413772080,16.425,91.41,91.322,6.0]
[1643413772281,47.2021,91.455,91.323,110.15]
[1643413772483,47.2021,91.455,91.324,54.6414]
[1643413772682,6.0,91.445,91.335,65.78]
[1643413772882,6.0,91.445,91.338,109.9]
[1643413773082,47.2021,91.455,91.349,109.9]
[1643413773286,16.417,91.45,91.351,40.69591337]
[1643413773682,16.417,91.45,91.361,6.0]
[1643413773888,16.417,91.45,91.362,46.6669]
[1643413774085,0.25,91.449,91.362,46.6669]
[1643413774284,16.42,91.44,91.362,0.25]
[1643413774686,0.25,91.439,91.362,0.25]
[1643413775086,0.25,91.439,91.332,6.25]
[1643413775286,0.25,91.439,91.333,33.88083755]
[1643413775586,0.25,91.439,91.333,57.46483755]
[1643413775789,16.423,91.42,91.334,0.25]
[1643413776189,0.25,91.419,91.334,0.25]
[1643413777892,16.425,91.41,91.334,0.25]
[1643413779294,16.426,91.4,91.334,0.25]
[1643413779492,22.426,91.4,91.334,0.25]
[1643413779692,0.25,91.399,91.323,0.25]
[1643413780093,6.0,91.39,91.323,36.7819765]
[1643413780294,0.25,91.389,91.323,36.7819765]
[1643413780495,6.0,91.38,91.323,36.7819765]
[1643413780894,0.25,91.389,91.323,36.7819765]
[1643413781298,0.25,91.389,91.323,0.25]
[1643413781694,6.0,91.38,91.323,0.25]
[1643413781896,0.25,91.417,91.323,0.25]
[1643413782097,6.0,91.408,91.323,0.25]
[1643413782301,0.25,91.407,91.323,70.53136317]
[1643413783099,16.428,91.39,91.323,70.53136317]
[1643413784002,16.428,91.39,91.323,25.0201]
[1643413784200,0.25,91.389,91.323,25.0201]
[1643413785401,16.428,91.39,91.323,25.0201]
[1643413786398,16.428,91.39,91.323,24.7701]
[1643413787232,16.425,91.41,91.323,24.7701]
[1643413787625,16.425,91.41,91.323,36.6001]
[1643413787826,16.425,91.41,91.324,0.25]
[1643413788427,0.25,91.409,91.324,0.25]
[1643413788727,6.0,91.4,91.334,36.03949192]
[1643413788936,6.0,91.4,91.335,0.25]
[1643413789630,16.425,91.41,91.335,0.25]
[1643413795738,0.25,91.409,91.335,0.25]
[1643413796742,0.25,91.409,91.334,36.03949192]
[1643413797939,0.25,91.409,91.335,0.25]
[1643413799742,0.25,91.409,91.334,36.03949192]
[1643413800048,16.425,91.41,91.344,6.0]
[1643413800643,16.419,91.44,91.344,6.0]
[1643413800847,23.5556,91.439,91.345,23.5963]
[1643413801153,23.5556,91.439,91.356,38.88505313]
[1643413801344,23.5556,91.439,91.357,23.8463]
[1643413801544,23.5556,91.439,91.367,6.0]
[1643413801847,23.5556,91.439,91.368,0.25]
[1643413802045,23.5556,91.439,91.368,6.25]
[1643413802443,23.5556,91.439,91.37,6.0]
[1643413802645,23.5556,91.439,91.371,36.18178737]
[1643413802843,23.5556,91.439,91.371,36.43178737]
[1643413803746,23.5556,91.439,91.371,0.25]
[1643413804145,16.423,91.42,91.34,1.49765004]
[1643413804347,16.423,91.42,91.359,0.25]
[1643413805347,16.423,91.42,91.337,6.0]
[1643413805551,16.423,91.42,91.344,6.0]
[1643413805751,0.25,91.419,91.345,0.25]
[1643413805948,16.424,91.41,91.345,0.25]
[1643413806350,0.25,91.409,91.345,0.25]
[1643413806958,0.25,91.409,91.324,23.3166]
[1643413807152,2.95669142,91.408,91.324,23.3166]
[1643413807352,2.95669142,91.408,91.3,2.51054314]
[1643413807353,16.426,91.4,91.312,1.49765004]
[1643413807552,16.426,91.4,91.3,2.51054314]
[1643413807553,16.426,91.4,91.304,1.49765004]
[1643413807754,3.20669142,91.399,91.31,6.0]
[1643413808054,3.20669142,91.399,91.291,22.9491]
[1643413808055,1.52098966,91.389,91.291,22.9491]
[1643413808252,1.52098966,91.386,91.291,22.9491]
[1643413808651,27.34959142,91.385,91.296,1.49765004]
[1643413808851,16.43,91.38,91.3,38.32509861]
[1643413809252,16.43,91.38,91.301,1.74765004]
[1643413809654,0.25,91.379,91.301,0.25]
[1643413811557,16.43,91.38,91.301,0.25]
[1643413811757,0.25,91.379,91.301,0.25]
[1643413812557,0.25,91.379,91.298,0.25]
[1643413812756,0.25,91.379,91.296,0.25]
[1643413813380,0.25,91.379,91.296,37.73476808]
[1643413813781,16.43,91.38,91.296,37.73476808]
[1643413813982,16.43,91.38,91.299,1.49765004]
[1643413814280,16.43,91.38,91.306,6.0]
[1643413814681,16.43,91.38,91.307,0.25]
[1643413815080,16.43,91.38,91.307,22.841]
[1643413817882,22.431,91.37,91.307,0.25]
[1643413818083,22.431,91.37,91.307,6.25]
[1643413818283,0.25,91.369,91.307,0.25]
[1643413818682,0.25,91.369,91.298,6.0]
[1643413818883,0.25,91.369,91.299,0.25]
[1643413819083,0.25,91.369,91.299,6.25]
[1643413819282,16.433,91.36,91.299,6.25]
[1643413819482,22.433,91.36,91.299,6.25]
[1643413819689,0.25,91.359,91.299,6.25]
[1643413819883,16.433,91.36,91.299,6.25]
[1643413821685,16.438,91.35,91.279,1.49765004]
[1643413821885,0.25,91.349,91.265,1.49765004]
[1643413822087,3.20669142,91.349,91.265,1.49765004]
[1643413822290,2.95669142,91.348,91.257,1.49765004]
[1643413822490,22.8587,91.347,91.252,1.49765004]
[1643413822688,23.1087,91.347,91.247,1.49765004]
[1643413822886,2.95669142,91.346,91.245,1.49765004]
[1643413823086,16.44,91.33,91.242,1.49765004]
[1643413823286,23.0092,91.329,91.242,1.49765004]
[1643413823696,2.95669142,91.328,91.243,0.25]
[1643413823888,0.25,91.327,91.242,0.25]
[1643413824090,0.25,91.327,91.241,48.3904]
[1643413824290,2.95669142,91.326,91.241,48.3904]
[1643413824689,0.25,91.325,91.241,48.3904]
[1643413825090,16.444,91.31,91.227,1.49765004]
[1643413825291,23.9625,91.309,91.227,1.49765004]
[1643413825493,23.9625,91.309,91.226,35.27897755]
[1643413825993,23.9625,91.309,91.227,24.4075]
[1643413826192,23.9625,91.309,91.227,24.6575]
[1643413826394,23.7125,91.309,91.228,20.76857958]
[1643413826594,16.444,91.3,91.228,20.76857958]
[1643413826794,16.444,91.3,91.229,0.25]
[1643413827995,16.444,91.3,91.228,0.25]
[1643413828195,16.449,91.28,91.228,0.25]
[1643413828393,16.449,91.28,91.211,1.49765004]
[1643413828394,29.609,91.28,91.211,1.49765004]
[1643413828595,29.609,91.28,91.204,1.49765004]
[1643413828997,13.16,91.28,91.203,24.1835]
[1643413829195,6.0,91.29,91.203,24.1835]
[1643413829395,6.0,91.29,91.214,43.2284307]
[1643413829595,0.25,91.299,91.224,6.0]
[1643413829796,0.25,91.299,91.225,0.25]
[1643413829999,0.25,91.299,91.215,24.1771]
[1643413830396,16.446,91.29,91.215,24.1771]
[1643413830797,0.25,91.289,91.215,24.1771]
[1643413830996,0.25,91.289,91.225,6.0]
[1643413831201,16.446,91.29,91.225,6.0]
[1643413831397,24.0427,91.308,91.226,0.25]
[1643413831598,24.0427,91.308,91.226,24.7411]
[1643413831798,0.25,91.307,91.226,24.7411]
[1643413831998,0.25,91.307,91.236,6.0]
[1643413832298,0.25,91.307,91.237,0.25]
[1643413832902,16.444,91.3,91.237,0.25]
[1643413833303,24.0427,91.308,91.237,0.25]
[1643413833901,24.0427,91.308,91.237,24.8085]
[1643413834302,16.441,91.32,91.247,6.0]
[1643413834501,16.441,91.32,91.248,6.0]
[1643413834700,16.441,91.32,91.248,6.25]
[1643413835104,16.441,91.32,91.249,23.673]
[1643413835302,16.441,91.32,91.248,6.0]
[1643413835701,16.441,91.32,91.221,1.49765004]
[1643413835902,0.25,91.319,91.231,6.0]
[1643413836104,25.0284,91.319,91.231,6.0]
[1643413836301,25.0284,91.319,91.232,41.47841462]
[1643413836502,25.0284,91.319,91.242,6.0]
[1643413836802,25.0284,91.319,91.243,23.5977]
[1643413838506,25.0284,91.319,91.243,23.3477]
[1643413838903,25.0284,91.319,91.253,6.0]
[1643413839503,24.7784,91.319,91.253,6.0]
[1643413839804,24.7784,91.319,91.254,0.25]
[1643413840210,24.7784,91.319,91.254,25.1439]
[1643413842106,24.7784,91.319,91.264,6.0]
[1643413842305,24.7784,91.319,91.265,0.25]
[1643413843611,24.7784,91.319,91.255,0.25]
[1643413844008,24.7784,91.319,91.244,6.0]
[1643413844308,24.7784,91.319,91.245,0.25]
[1643413844508,24.7784,91.319,91.245,6.25]
[1643413844712,24.7784,91.319,91.246,24.7054]
[1643413845107,24.7784,91.319,91.256,6.0]
[1643413845310,24.7784,91.319,91.257,0.25]
[1643413850238,24.7784,91.319,91.257,23.017]
[1643413850443,24.7784,91.319,91.257,29.017]
[1643413850641,24.7784,91.319,91.258,6.0]
[1643413850844,24.7784,91.319,91.259,0.25]
[1643413851043,24.7784,91.319,91.267,6.0]
[1643413851246,24.7784,91.319,91.268,0.25]
[1643413852441,24.7784,91.319,91.258,1.74765004]
[1643413852643,24.7784,91.319,91.259,1.49765004]
[1643413852844,24.7784,91.319,91.26,0.25]
[1643413853047,24.7784,91.319,91.258,1.74765004]
[1643413853747,24.7784,91.319,91.261,1.49765004]
[1643413853945,24.7784,91.319,91.258,0.25]
[1643413853946,24.7784,91.319,91.262,1.49765004]
[1643413854146,11.42962058,91.352,91.262,1.49765004]
[1643413854147,1.52098966,91.353,91.262,1.49765004]
[1643413854346,1.52098966,91.372,91.28,1.49765004]
[1643413854546,1.52098966,91.385,91.294,1.49765004]
[1643413854750,1.52098966,91.385,91.296,65.78]
[1643413854948,1.52098966,91.402,91.316,0.32208161]
[1643413855148,1.52098966,91.409,91.318,1.49765004]
[1643413855350,1.52098966,91.416,91.324,1.49765004]
[1643413855551,16.419,91.44,91.32,65.78]
[1643413855552,1.52098966,91.423,91.334,6.0]
[1643413855749,1.52098966,91.423,91.341,0.31555991]
[1643413855950,1.52098966,91.43,91.341,13.47555991]
[1643413856148,1.52098966,91.429,91.348,6.0]
[1643413856348,1.52098966,91.429,91.351,6.0]
[1643413856549,1.52098966,91.431,91.359,6.0]
[1643413856749,16.419,91.44,91.36,0.25]
[1643413857749,16.669,91.44,91.36,0.25]
[1643413859150,1.52098966,91.454,91.36,110.15]
[1643413859351,24.3695,91.46,91.362,109.9]
[1643413859550,1.52098966,91.47,91.372,6.0]
[1643413859750,1.52098966,91.475,91.374,109.9]
[1643413860151,54.717,91.48,91.384,6.0]
[1643413860351,54.717,91.48,91.385,57.20189098]
[1643413860551,54.967,91.48,91.385,63.20189098]
[1643413861053,16.415,91.46,91.394,6.0]
[1643413861254,16.665,91.46,91.395,6.0]
[1643413865657,16.665,91.46,91.39,0.25]
[1643413865891,16.665,91.46,91.385,24.2122]
[1643413867760,2.95669142,91.459,91.38,0.25]
[1643413867962,6.0,91.45,91.361,23.7587]
[1643413868367,16.42,91.43,91.361,23.7587]
[1643413868766,16.67,91.43,91.361,23.7587]
[1643413870466,2.95669142,91.429,91.361,23.7587]
[1643413870665,16.42,91.43,91.361,23.7587]
[1643413870872,16.42,91.43,91.36,0.25]
[1643413871067,2.95669142,91.429,91.323,46.4724]
[1643413871266,16.428,91.4,91.323,46.4724]
[1643413871464,28.038,91.4,91.323,46.4724]
[1643413871666,2.95669142,91.399,91.323,46.4724]
[1643413871866,0.25,91.4,91.323,46.4724]
[1643413872266,16.43,91.38,91.32,0.25]
[1643413872467,16.43,91.38,91.31,0.25]
[1643413872668,2.95669142,91.379,91.29,6.0]
[1643413872866,2.95669142,91.379,91.291,6.0]
[1643413873066,2.95669142,91.379,91.3,6.0]
[1643413873267,16.433,91.37,91.3,6.25]
[1643413873697,16.683,91.37,91.3,6.0]
[1643413873895,2.95669142,91.369,91.291,6.0]
[1643413874095,2.95669142,91.369,91.281,48.015]
[1643413874297,16.436,91.35,91.241,109.9]
[1643413874495,29.226,91.35,91.256,48.7895]
[1643413874794,2.95669142,91.349,91.256,48.7895]
[1643413875195,0.25,91.35,91.256,48.7895]
[1643413875394,16.438,91.33,91.266,6.0]
[1643413876207,2.95669142,91.329,91.239,11.43094115]
[1643413876406,2.95669142,91.329,91.224,74.93085004]
[1643413876407,16.444,91.3,91.224,1.49765004]
[1643413876599,16.444,91.3,91.215,1.49765004]
[1643413876798,16.694,91.3,91.211,23.7836]
[1643413877200,16.694,91.3,91.212,42.06326263]
[1643413878710,51.36599142,91.329,91.213,109.9]
[1643413878904,16.441,91.32,91.222,6.0]
[1643413879102,16.441,91.32,91.223,6.0]
[1643413879302,16.691,91.32,91.223,6.0]
[1643413879508,16.691,91.32,91.23,6.0]
[1643413879904,16.691,91.32,91.231,6.0]
[1643413880107,16.691,91.32,91.24,6.0]
[1643413880305,16.691,91.32,91.241,36.18827772]
[1643413880908,16.691,91.32,91.24,6.25]
[1643413881111,16.691,91.32,91.24,0.25]
[1643413881517,16.691,91.32,91.23,0.25]
[1643413881910,54.804,91.34,91.235,6.0]
[1643413882112,54.804,91.34,91.236,6.0]
[1643413882511,54.804,91.34,91.237,6.0]
[1643413882713,54.804,91.34,91.238,23.8285]
[1643413883114,54.804,91.34,91.248,6.0]
[1643413883313,6.0,91.33,91.248,6.0]
[1643413883513,22.439,91.33,91.248,6.0]
[1643413883719,16.689,91.33,91.248,6.0]
[1643413885517,16.189,91.33,91.248,6.0]
[1643413886218,15.939,91.33,91.248,6.0]
[1643413887618,16.189,91.33,91.248,6.0]
[1643413888318,15.939,91.33,91.248,6.0]
[1643413890219,15.939,91.33,91.249,109.9]
[1643413890624,15.939,91.33,91.26,33.39347487]
[1643413890926,15.939,91.33,91.26,33.64347487]
[1643413891122,15.939,91.33,91.27,6.0]
[1643413891327,15.939,91.33,91.27,6.25]
[1643413891527,24.5549,91.349,91.27,0.25]
[1643413891924,16.436,91.35,91.27,6.25]
[1643413892161,20.18825002,91.386,91.271,71.73]
[1643413892368,24.6525,91.417,91.271,71.73]
[1643413892369,0.25,91.39,91.275,65.73]
[1643413892561,8.95669142,91.406,91.285,6.0]
[1643413892758,22.782,91.416,91.292,109.9]
[1643413892957,16.428,91.39,91.294,37.24002131]
[1643413893156,16.428,91.39,91.302,6.0]
[1643413893364,16.428,91.39,91.304,6.0]
[1643413893558,16.428,91.39,91.305,30.9872]
[1643413893758,16.678,91.39,91.305,30.9872]
[1643413894359,16.428,91.39,91.305,30.9872]
[1643413895360,16.678,91.39,91.305,30.9872]
[1643413896160,0.25,91.39,91.305,30.9872]
[1643413896361,16.674,91.41,91.305,30.9872]
[1643413896563,16.674,91.41,91.31,6.0]
[1643413896860,16.674,91.41,91.315,6.0]
[1643413897061,16.674,91.41,91.32,6.0]
[1643413897266,16.674,91.41,91.32,6.25]
[1643413897462,16.674,91.41,91.326,6.0]
[1643413897864,16.674,91.41,91.33,6.0]
[1643413898070,16.674,91.41,91.332,6.0]
[1643413898864,16.674,91.41,91.333,6.0]
[1643413900273,0.25,91.41,91.334,37.33203656]
[1643413900668,22.782,91.416,91.344,6.0]
[1643413901073,113.7,91.419,91.345,6.0]
[1643413901270,23.3263,91.436,91.345,6.0]
[1643413902071,16.422,91.43,91.346,6.0]